{"text_format":"3","workbook":"xlsx","n_sheets":5,"sheets":["Pregled žurke","Spisak gostiju","Hrana i piće","Druge osnovne potrepštine","Koord. mreža rasporeda sedenja"],"not_rendered":{"defined_names":9},"read":"whole","date_system":"1900"}

{"sheet":"Pregled žurke","index":0,"n_rows":21,"n_cols":8,"rows_kept":21,"merged":[[6,3,6,4],[6,5,6,6],[9,1,9,2]]}
[]
[]
[null,"Pregled žurke"]
[]
[]
[null,"DOGAĐAJ",null,"REZIME GOSTIJU",{"$nulls":3},{"$f":"\"GOSTI KOJI JOŠ NISU ODGOVORILI NA POZIV: \"&OutstandingRSVPs","v":"GOSTI KOJI JOŠ NISU ODGOVORILI NA POZIV: 2"}]
[null,"Bakin 75. rođendan",null,"PREGLED ODGOVORA O UČEŠĆU",null,"TROŠAK PO GOSTU",null,"IZNOS BUDŽETA"]
[{"$nulls":3},"Potvrđeno gostiju","Ukupno potvrđeno","Hrana","Ostalo","Ukupno"]
[null,"DATUM",null,"Odrasli",{"$f":"SUMIF(GuestTable[DOLAZI?],\"=Da\",GuestTable[ODRASLI])","v":26},{"$f":"FoodTable[[#Totals],[TROŠAK PO ODRASLOM]]","v":{"v":12.690089084110037,"d":"12.69 Din."}},{"$f":"EssentialCostPerGuest","v":{"v":18.695652173913043,"d":"18.70 Din."}},{"$f":"(AttendeeSummary[[#This Row],[Hrana]]+AttendeeSummary[[#This Row],[Ostalo]])*AdultTotal","v":{"v":816.0292727086002,"d":"816.03 Din."}}]
[null,"2011-06-14",null,"Deca",{"$f":"SUMIF(GuestTable[DOLAZI?],\"=Da\",GuestTable[DECA])","v":20},{"$f":"FoodTable[[#Totals],[TROŠAK PO DETETU]]","v":{"v":7.252884190656953,"d":"7.25 Din."}},{"$f":"EssentialCostPerGuest","v":{"v":18.695652173913043,"d":"18.70 Din."}},{"$f":"(AttendeeSummary[[#This Row],[Hrana]]+AttendeeSummary[[#This Row],[Ostalo]])*ChildrenTotal","v":{"v":518.9707272914,"d":"518.97 Din."}}]
[{"$nulls":3},"Ukupno",{"$f":"SUBTOTAL(109,AttendeeSummary[Ukupno potvrđeno])","v":46},{"$f":"\"prosek  \"&TEXT(SUBTOTAL(101,AttendeeSummary[Hrana]),\"#.##0,00 Din.\")","v":"prosek  9,97 Din."},{"$f":"\"prosek  \"&TEXT(SUBTOTAL(101,AttendeeSummary[Ostalo]),\"#.##0,00 Din.\")","v":"prosek  18,70 Din."},{"$f":"SUBTOTAL(109,AttendeeSummary[Ukupno])","v":{"v":1335,"d":"1,335.00 Din."}}]
[null,"VREME"]
[null,"14:00 do 16:00"]
[]
[null,"LOKACIJA",null,"REZIME BUDŽETA"]
[null,"Teta Kaćina kuća",null,"STAVKA","BROJ","IZNOS BUDŽETA","UKUPAN TROŠAK","RAZLIKA"]
[{"$nulls":3},"Hrana i piće",{"$f":"COUNTA(FoodTable[STAVKA HRANE ILI PIĆA])","v":18},{"v":500,"d":"500.00 Din."},{"$f":"FoodTable[[#Totals],[UKUPAN TROŠAK]]","v":{"v":475,"d":"475.00 Din."}},{"$f":"BudgetOverview[[#This Row],[IZNOS BUDŽETA]]-BudgetOverview[[#This Row],[UKUPAN TROŠAK]]","v":{"v":25,"d":"25.00 Din."}}]
[{"$nulls":3},{"$f":"Table1Header","v":"Oprema i zalihe"},{"$f":"COUNTA(Table1Budget[Oprema i zalihe])","v":7},{"v":400,"d":"400.00 Din."},{"$f":"Table1Budget[[#Totals],[Troškovi]]","v":{"v":400,"d":"400.00 Din."}},{"$f":"BudgetOverview[[#This Row],[IZNOS BUDŽETA]]-BudgetOverview[[#This Row],[UKUPAN TROŠAK]]","v":{"v":0,"d":"0.00 Din."}}]
[{"$nulls":3},{"$f":"Table2Header","v":"Dekoracija"},{"$f":"COUNTA(Table2Budget[Dekoracija])","v":4},{"v":150,"d":"150.00 Din."},{"$f":"Table2Budget[[#Totals],[Troškovi]]","v":{"v":175,"d":"175.00 Din."}},{"$f":"BudgetOverview[[#This Row],[IZNOS BUDŽETA]]-BudgetOverview[[#This Row],[UKUPAN TROŠAK]]","v":{"v":-25,"d":"-25.00 Din."}}]
[{"$nulls":3},{"$f":"Table3Header","v":"Ostalo"},{"$f":"COUNTA(Table3Budget[Ostalo])","v":4},{"v":300,"d":"300.00 Din."},{"$f":"Table3Budget[[#Totals],[Troškovi]]","v":{"v":285,"d":"285.00 Din."}},{"$f":"BudgetOverview[[#This Row],[IZNOS BUDŽETA]]-BudgetOverview[[#This Row],[UKUPAN TROŠAK]]","v":{"v":15,"d":"15.00 Din."}}]
[{"$nulls":3},"Ukupno",{"$f":"SUBTOTAL(109,BudgetOverview[BROJ])","v":33},{"$f":"SUBTOTAL(109,BudgetOverview[IZNOS BUDŽETA])","v":{"v":1350,"d":"1,350.00 Din."}},{"$f":"SUBTOTAL(109,BudgetOverview[UKUPAN TROŠAK])","v":{"v":1335,"d":"1,335.00 Din."}},{"$f":"SUBTOTAL(109,BudgetOverview[RAZLIKA])","v":{"v":15,"d":"15.00 Din."}}]

{"sheet":"Spisak gostiju","index":1,"n_rows":22,"n_cols":12,"rows_kept":22}
[]
[]
[null,"Spisak gostiju"]
[]
[]
[]
[null,"IME","ADRESA","GRAD","DRŽAVA","POŠTANSKI BROJ","TELEFON","E-ADRESA","DOLAZI?","DECA","ODRASLI","UKUPNO"]
[null,"Porodica 1","Adresa 1","Grad 1","Država 1","Poštanski broj 1","Telefon 1","E-pošta1","Ne",2,2,{"$f":"SUM(GuestTable[[#This Row],[DECA]:[ODRASLI]])","v":4}]
[null,"Porodica 2","Adresa 2","Grad 2","Država 2","Poštanski broj 2","Telefon 2","E-pošta2","Da",1,1,{"$f":"SUM(GuestTable[[#This Row],[DECA]:[ODRASLI]])","v":2}]
[null,"Porodica 3","Adresa 3","Grad 3","Država 3","Poštanski broj 3","Telefon 3","E-pošta3","Da",3,3,{"$f":"SUM(GuestTable[[#This Row],[DECA]:[ODRASLI]])","v":6}]
[null,"Porodica 4","Adresa 4","Grad 4","Država 4","Poštanski broj 4","Telefon 4","E-pošta4",null,null,2,{"$f":"SUM(GuestTable[[#This Row],[DECA]:[ODRASLI]])","v":2}]
[null,"Porodica 5","Adresa 5","Grad 5","Država 5","Poštanski broj 5","Telefon 5","E-pošta5","Da",4,3,{"$f":"SUM(GuestTable[[#This Row],[DECA]:[ODRASLI]])","v":7}]
[null,"Porodica 6","Adresa 6","Grad 6","Država 6","Poštanski broj 6","Telefon 6","E-pošta6","Da",2,2,{"$f":"SUM(GuestTable[[#This Row],[DECA]:[ODRASLI]])","v":4}]
[null,"Porodica 7","Adresa 7","Grad 7","Država 7","Poštanski broj 7","Telefon 7","E-pošta7","Da",1,4,{"$f":"SUM(GuestTable[[#This Row],[DECA]:[ODRASLI]])","v":5}]
[null,"Porodica 8","Adresa 8","Grad 8","Država 8","Poštanski broj 8","Telefon 8","E-pošta8","Ne",5,3,{"$f":"SUM(GuestTable[[#This Row],[DECA]:[ODRASLI]])","v":8}]
[null,"Porodica 9","Adresa 9","Grad 9","Država 9","Poštanski broj 9","Telefon 9","E-pošta‚9","Da",3,2,{"$f":"SUM(GuestTable[[#This Row],[DECA]:[ODRASLI]])","v":5}]
[null,"Porodica 10","Adresa 10","Grad 10","Država 10","Poštanski broj 10","Telefon 10","E-pošta10","Da",null,4,{"$f":"SUM(GuestTable[[#This Row],[DECA]:[ODRASLI]])","v":4}]
[null,"Porodica 11","Adresa 11","Grad 11","Država 11","Poštanski broj 11","Telefon 11","E-pošta11","Da",3,5,{"$f":"SUM(GuestTable[[#This Row],[DECA]:[ODRASLI]])","v":8}]
[null,"Porodica 12","Adresa 12","Grad 12","Država 12","Poštanski broj 12","Telefon 12","E-pošta12","Ne",2,3,{"$f":"SUM(GuestTable[[#This Row],[DECA]:[ODRASLI]])","v":5}]
[null,"Porodica 13","Adresa 13","Grad 13","Država 13","Poštanski broj 13","Telefon 13","E-pošta13","Da",3,2,{"$f":"SUM(GuestTable[[#This Row],[DECA]:[ODRASLI]])","v":5}]
[null,"Porodica 14","Adresa 14","Grad 14","Država 14","Poštanski broj 14","Telefon 14","E-pošta14","Ne",null,1,{"$f":"SUM(GuestTable[[#This Row],[DECA]:[ODRASLI]])","v":1}]
[null,"Porodica 15","Adresa 15","Grad 15","Država 15","Poštanski broj 15","Telefon 15","E-pošta1‚5",null,null,2,{"$f":"SUM(GuestTable[[#This Row],[DECA]:[ODRASLI]])","v":2}]

{"sheet":"Hrana i piće","index":2,"n_rows":25,"n_cols":10,"rows_kept":25}
[]
[]
[null,"Hrana i piće"]
[]
[null,"Unesite trošak i procenjene porcije da biste automatski izračunali ukupan broj komada i i trošak po porciji na odnosu ukupnog broja učesnika"]
[null,"STAVKA HRANE ILI PIĆA","UKUPAN TROŠAK","PORCIJA ZA DECU","PORCIJA ZA ODRASLE","UKUPNO PORCIJA","TROŠAK PO PORCIJI","TROŠAK PO DETETU","TROŠAK PO ODRASLOM","BELEŠKE"]
[null,"Soda",{"v":15,"d":"15.00 Din."},0.5,2,{"$f":"(FoodTable[[#This Row],[PORCIJA ZA DECU]]*ChildrenTotal)+(FoodTable[[#This Row],[PORCIJA ZA ODRASLE]]*AdultTotal)","v":62},{"$f":"IFERROR(FoodTable[[#This Row],[UKUPAN TROŠAK]]/FoodTable[[#This Row],[UKUPNO PORCIJA]],\"\")","v":{"v":0.24193548387096775,"d":"0.24 Din."}},{"$f":"IFERROR(FoodTable[[#This Row],[TROŠAK PO PORCIJI]]*FoodTable[[#This Row],[PORCIJA ZA DECU]],\"\")","v":{"v":0.12096774193548387,"d":"0.12 Din."}},{"$f":"IFERROR(FoodTable[[#This Row],[TROŠAK PO PORCIJI]]*FoodTable[[#This Row],[PORCIJA ZA ODRASLE]],\"\")","v":{"v":0.4838709677419355,"d":"0.48 Din."}},"2 litarske boce"]
[null,"Paketi soka",{"v":15,"d":"15.00 Din."},2,0,{"$f":"(FoodTable[[#This Row],[PORCIJA ZA DECU]]*ChildrenTotal)+(FoodTable[[#This Row],[PORCIJA ZA ODRASLE]]*AdultTotal)","v":40},{"$f":"IFERROR(FoodTable[[#This Row],[UKUPAN TROŠAK]]/FoodTable[[#This Row],[UKUPNO PORCIJA]],\"\")","v":{"v":0.375,"d":"0.38 Din."}},{"$f":"IFERROR(FoodTable[[#This Row],[TROŠAK PO PORCIJI]]*FoodTable[[#This Row],[PORCIJA ZA DECU]],\"\")","v":{"v":0.75,"d":"0.75 Din."}},{"$f":"IFERROR(FoodTable[[#This Row],[TROŠAK PO PORCIJI]]*FoodTable[[#This Row],[PORCIJA ZA ODRASLE]],\"\")","v":{"v":0,"d":"0.00 Din."}},"Jabuka i belo grožđe"]
[null,"Vino",{"v":50,"d":"50.00 Din."},0,2,{"$f":"(FoodTable[[#This Row],[PORCIJA ZA DECU]]*ChildrenTotal)+(FoodTable[[#This Row],[PORCIJA ZA ODRASLE]]*AdultTotal)","v":52},{"$f":"IFERROR(FoodTable[[#This Row],[UKUPAN TROŠAK]]/FoodTable[[#This Row],[UKUPNO PORCIJA]],\"\")","v":{"v":0.9615384615384616,"d":"0.96 Din."}},{"$f":"IFERROR(FoodTable[[#This Row],[TROŠAK PO PORCIJI]]*FoodTable[[#This Row],[PORCIJA ZA DECU]],\"\")","v":{"v":0,"d":"0.00 Din."}},{"$f":"IFERROR(FoodTable[[#This Row],[TROŠAK PO PORCIJI]]*FoodTable[[#This Row],[PORCIJA ZA ODRASLE]],\"\")","v":{"v":1.9230769230769231,"d":"1.92 Din."}}]
[null,"Torta",{"v":75,"d":"75.00 Din."},1,1,{"$f":"(FoodTable[[#This Row],[PORCIJA ZA DECU]]*ChildrenTotal)+(FoodTable[[#This Row],[PORCIJA ZA ODRASLE]]*AdultTotal)","v":46},{"$f":"IFERROR(FoodTable[[#This Row],[UKUPAN TROŠAK]]/FoodTable[[#This Row],[UKUPNO PORCIJA]],\"\")","v":{"v":1.6304347826086956,"d":"1.63 Din."}},{"$f":"IFERROR(FoodTable[[#This Row],[TROŠAK PO PORCIJI]]*FoodTable[[#This Row],[PORCIJA ZA DECU]],\"\")","v":{"v":1.6304347826086956,"d":"1.63 Din."}},{"$f":"IFERROR(FoodTable[[#This Row],[TROŠAK PO PORCIJI]]*FoodTable[[#This Row],[PORCIJA ZA ODRASLE]],\"\")","v":{"v":1.6304347826086956,"d":"1.63 Din."}},"Naručiti u lokalnoj pekari"]
[null,"Sladoled",{"v":20,"d":"20.00 Din."},1,1.5,{"$f":"(FoodTable[[#This Row],[PORCIJA ZA DECU]]*ChildrenTotal)+(FoodTable[[#This Row],[PORCIJA ZA ODRASLE]]*AdultTotal)","v":59},{"$f":"IFERROR(FoodTable[[#This Row],[UKUPAN TROŠAK]]/FoodTable[[#This Row],[UKUPNO PORCIJA]],\"\")","v":{"v":0.3389830508474576,"d":"0.34 Din."}},{"$f":"IFERROR(FoodTable[[#This Row],[TROŠAK PO PORCIJI]]*FoodTable[[#This Row],[PORCIJA ZA DECU]],\"\")","v":{"v":0.3389830508474576,"d":"0.34 Din."}},{"$f":"IFERROR(FoodTable[[#This Row],[TROŠAK PO PORCIJI]]*FoodTable[[#This Row],[PORCIJA ZA ODRASLE]],\"\")","v":{"v":0.5084745762711864,"d":"0.51 Din."}}]
[null,"Puding",{"v":15,"d":"15.00 Din."},1,0,{"$f":"(FoodTable[[#This Row],[PORCIJA ZA DECU]]*ChildrenTotal)+(FoodTable[[#This Row],[PORCIJA ZA ODRASLE]]*AdultTotal)","v":20},{"$f":"IFERROR(FoodTable[[#This Row],[UKUPAN TROŠAK]]/FoodTable[[#This Row],[UKUPNO PORCIJA]],\"\")","v":{"v":0.75,"d":"0.75 Din."}},{"$f":"IFERROR(FoodTable[[#This Row],[TROŠAK PO PORCIJI]]*FoodTable[[#This Row],[PORCIJA ZA DECU]],\"\")","v":{"v":0.75,"d":"0.75 Din."}},{"$f":"IFERROR(FoodTable[[#This Row],[TROŠAK PO PORCIJI]]*FoodTable[[#This Row],[PORCIJA ZA ODRASLE]],\"\")","v":{"v":0,"d":"0.00 Din."}},"Kupiti u pakovanju: vanila i čokolada"]
[null,"Punjene pečurke",{"v":32,"d":"32.00 Din."},1,2,{"$f":"(FoodTable[[#This Row],[PORCIJA ZA DECU]]*ChildrenTotal)+(FoodTable[[#This Row],[PORCIJA ZA ODRASLE]]*AdultTotal)","v":72},{"$f":"IFERROR(FoodTable[[#This Row],[UKUPAN TROŠAK]]/FoodTable[[#This Row],[UKUPNO PORCIJA]],\"\")","v":{"v":0.4444444444444444,"d":"0.44 Din."}},{"$f":"IFERROR(FoodTable[[#This Row],[TROŠAK PO PORCIJI]]*FoodTable[[#This Row],[PORCIJA ZA DECU]],\"\")","v":{"v":0.4444444444444444,"d":"0.44 Din."}},{"$f":"IFERROR(FoodTable[[#This Row],[TROŠAK PO PORCIJI]]*FoodTable[[#This Row],[PORCIJA ZA ODRASLE]],\"\")","v":{"v":0.8888888888888888,"d":"0.89 Din."}},"Pečurke punjene krem sirom i kobasicom"]
[null,"Brusketi",{"v":22,"d":"22.00 Din."},0,3,{"$f":"(FoodTable[[#This Row],[PORCIJA ZA DECU]]*ChildrenTotal)+(FoodTable[[#This Row],[PORCIJA ZA ODRASLE]]*AdultTotal)","v":78},{"$f":"IFERROR(FoodTable[[#This Row],[UKUPAN TROŠAK]]/FoodTable[[#This Row],[UKUPNO PORCIJA]],\"\")","v":{"v":0.28205128205128205,"d":"0.28 Din."}},{"$f":"IFERROR(FoodTable[[#This Row],[TROŠAK PO PORCIJI]]*FoodTable[[#This Row],[PORCIJA ZA DECU]],\"\")","v":{"v":0,"d":"0.00 Din."}},{"$f":"IFERROR(FoodTable[[#This Row],[TROŠAK PO PORCIJI]]*FoodTable[[#This Row],[PORCIJA ZA ODRASLE]],\"\")","v":{"v":0.8461538461538461,"d":"0.85 Din."}},"Paradajz i bosiljak"]
[null,"Dimljeni losos",{"v":50,"d":"50.00 Din."},1,2,{"$f":"(FoodTable[[#This Row],[PORCIJA ZA DECU]]*ChildrenTotal)+(FoodTable[[#This Row],[PORCIJA ZA ODRASLE]]*AdultTotal)","v":72},{"$f":"IFERROR(FoodTable[[#This Row],[UKUPAN TROŠAK]]/FoodTable[[#This Row],[UKUPNO PORCIJA]],\"\")","v":{"v":0.6944444444444444,"d":"0.69 Din."}},{"$f":"IFERROR(FoodTable[[#This Row],[TROŠAK PO PORCIJI]]*FoodTable[[#This Row],[PORCIJA ZA DECU]],\"\")","v":{"v":0.6944444444444444,"d":"0.69 Din."}},{"$f":"IFERROR(FoodTable[[#This Row],[TROŠAK PO PORCIJI]]*FoodTable[[#This Row],[PORCIJA ZA ODRASLE]],\"\")","v":{"v":1.3888888888888888,"d":"1.39 Din."}}]
[null,"Mini pecivo",{"v":20,"d":"20.00 Din."},1,2,{"$f":"(FoodTable[[#This Row],[PORCIJA ZA DECU]]*ChildrenTotal)+(FoodTable[[#This Row],[PORCIJA ZA ODRASLE]]*AdultTotal)","v":72},{"$f":"IFERROR(FoodTable[[#This Row],[UKUPAN TROŠAK]]/FoodTable[[#This Row],[UKUPNO PORCIJA]],\"\")","v":{"v":0.2777777777777778,"d":"0.28 Din."}},{"$f":"IFERROR(FoodTable[[#This Row],[TROŠAK PO PORCIJI]]*FoodTable[[#This Row],[PORCIJA ZA DECU]],\"\")","v":{"v":0.2777777777777778,"d":"0.28 Din."}},{"$f":"IFERROR(FoodTable[[#This Row],[TROŠAK PO PORCIJI]]*FoodTable[[#This Row],[PORCIJA ZA ODRASLE]],\"\")","v":{"v":0.5555555555555556,"d":"0.56 Din."}},"4 kese – aranžirano"]
[null,"Krem sir",{"v":10,"d":"10.00 Din."},1,2,{"$f":"(FoodTable[[#This Row],[PORCIJA ZA DECU]]*ChildrenTotal)+(FoodTable[[#This Row],[PORCIJA ZA ODRASLE]]*AdultTotal)","v":72},{"$f":"IFERROR(FoodTable[[#This Row],[UKUPAN TROŠAK]]/FoodTable[[#This Row],[UKUPNO PORCIJA]],\"\")","v":{"v":0.1388888888888889,"d":"0.14 Din."}},{"$f":"IFERROR(FoodTable[[#This Row],[TROŠAK PO PORCIJI]]*FoodTable[[#This Row],[PORCIJA ZA DECU]],\"\")","v":{"v":0.1388888888888889,"d":"0.14 Din."}},{"$f":"IFERROR(FoodTable[[#This Row],[TROŠAK PO PORCIJI]]*FoodTable[[#This Row],[PORCIJA ZA ODRASLE]],\"\")","v":{"v":0.2777777777777778,"d":"0.28 Din."}},"2 velike tube"]
[null,"Kapar",{"v":12,"d":"12.00 Din."},1,2,{"$f":"(FoodTable[[#This Row],[PORCIJA ZA DECU]]*ChildrenTotal)+(FoodTable[[#This Row],[PORCIJA ZA ODRASLE]]*AdultTotal)","v":72},{"$f":"IFERROR(FoodTable[[#This Row],[UKUPAN TROŠAK]]/FoodTable[[#This Row],[UKUPNO PORCIJA]],\"\")","v":{"v":0.16666666666666666,"d":"0.17 Din."}},{"$f":"IFERROR(FoodTable[[#This Row],[TROŠAK PO PORCIJI]]*FoodTable[[#This Row],[PORCIJA ZA DECU]],\"\")","v":{"v":0.16666666666666666,"d":"0.17 Din."}},{"$f":"IFERROR(FoodTable[[#This Row],[TROŠAK PO PORCIJI]]*FoodTable[[#This Row],[PORCIJA ZA ODRASLE]],\"\")","v":{"v":0.3333333333333333,"d":"0.33 Din."}},"3 tegle"]
[null,"Pileća krilca",{"v":45,"d":"45.00 Din."},2,4,{"$f":"(FoodTable[[#This Row],[PORCIJA ZA DECU]]*ChildrenTotal)+(FoodTable[[#This Row],[PORCIJA ZA ODRASLE]]*AdultTotal)","v":144},{"$f":"IFERROR(FoodTable[[#This Row],[UKUPAN TROŠAK]]/FoodTable[[#This Row],[UKUPNO PORCIJA]],\"\")","v":{"v":0.3125,"d":"0.31 Din."}},{"$f":"IFERROR(FoodTable[[#This Row],[TROŠAK PO PORCIJI]]*FoodTable[[#This Row],[PORCIJA ZA DECU]],\"\")","v":{"v":0.625,"d":"0.63 Din."}},{"$f":"IFERROR(FoodTable[[#This Row],[TROŠAK PO PORCIJI]]*FoodTable[[#This Row],[PORCIJA ZA ODRASLE]],\"\")","v":{"v":1.25,"d":"1.25 Din."}},"Kupiti u lokalnoj prodavnici piletine"]
[null,"Humus",{"v":10,"d":"10.00 Din."},4,6,{"$f":"(FoodTable[[#This Row],[PORCIJA ZA DECU]]*ChildrenTotal)+(FoodTable[[#This Row],[PORCIJA ZA ODRASLE]]*AdultTotal)","v":236},{"$f":"IFERROR(FoodTable[[#This Row],[UKUPAN TROŠAK]]/FoodTable[[#This Row],[UKUPNO PORCIJA]],\"\")","v":{"v":0.0423728813559322,"d":"0.04 Din."}},{"$f":"IFERROR(FoodTable[[#This Row],[TROŠAK PO PORCIJI]]*FoodTable[[#This Row],[PORCIJA ZA DECU]],\"\")","v":{"v":0.1694915254237288,"d":"0.17 Din."}},{"$f":"IFERROR(FoodTable[[#This Row],[TROŠAK PO PORCIJI]]*FoodTable[[#This Row],[PORCIJA ZA ODRASLE]],\"\")","v":{"v":0.2542372881355932,"d":"0.25 Din."}},"Napraviti veče uoči žurke"]
[null,"Hrskava pita od parmezana",{"v":14,"d":"14.00 Din."},4,6,{"$f":"(FoodTable[[#This Row],[PORCIJA ZA DECU]]*ChildrenTotal)+(FoodTable[[#This Row],[PORCIJA ZA ODRASLE]]*AdultTotal)","v":236},{"$f":"IFERROR(FoodTable[[#This Row],[UKUPAN TROŠAK]]/FoodTable[[#This Row],[UKUPNO PORCIJA]],\"\")","v":{"v":0.059322033898305086,"d":"0.06 Din."}},{"$f":"IFERROR(FoodTable[[#This Row],[TROŠAK PO PORCIJI]]*FoodTable[[#This Row],[PORCIJA ZA DECU]],\"\")","v":{"v":0.23728813559322035,"d":"0.24 Din."}},{"$f":"IFERROR(FoodTable[[#This Row],[TROŠAK PO PORCIJI]]*FoodTable[[#This Row],[PORCIJA ZA ODRASLE]],\"\")","v":{"v":0.3559322033898305,"d":"0.36 Din."}},"Napraviti veče uoči žurke"]
[null,"Aranžirano povrće",{"v":30,"d":"30.00 Din."},4,10,{"$f":"(FoodTable[[#This Row],[PORCIJA ZA DECU]]*ChildrenTotal)+(FoodTable[[#This Row],[PORCIJA ZA ODRASLE]]*AdultTotal)","v":340},{"$f":"IFERROR(FoodTable[[#This Row],[UKUPAN TROŠAK]]/FoodTable[[#This Row],[UKUPNO PORCIJA]],\"\")","v":{"v":0.08823529411764706,"d":"0.09 Din."}},{"$f":"IFERROR(FoodTable[[#This Row],[TROŠAK PO PORCIJI]]*FoodTable[[#This Row],[PORCIJA ZA DECU]],\"\")","v":{"v":0.35294117647058826,"d":"0.35 Din."}},{"$f":"IFERROR(FoodTable[[#This Row],[TROŠAK PO PORCIJI]]*FoodTable[[#This Row],[PORCIJA ZA ODRASLE]],\"\")","v":{"v":0.8823529411764707,"d":"0.88 Din."}},"Štapići šargarepe, celer, brokoli, karfiol, crvena i zelena paprika"]
[null,"Loptice od sira",{"v":15,"d":"15.00 Din."},5,10,{"$f":"(FoodTable[[#This Row],[PORCIJA ZA DECU]]*ChildrenTotal)+(FoodTable[[#This Row],[PORCIJA ZA ODRASLE]]*AdultTotal)","v":360},{"$f":"IFERROR(FoodTable[[#This Row],[UKUPAN TROŠAK]]/FoodTable[[#This Row],[UKUPNO PORCIJA]],\"\")","v":{"v":0.041666666666666664,"d":"0.04 Din."}},{"$f":"IFERROR(FoodTable[[#This Row],[TROŠAK PO PORCIJI]]*FoodTable[[#This Row],[PORCIJA ZA DECU]],\"\")","v":{"v":0.20833333333333331,"d":"0.21 Din."}},{"$f":"IFERROR(FoodTable[[#This Row],[TROŠAK PO PORCIJI]]*FoodTable[[#This Row],[PORCIJA ZA ODRASLE]],\"\")","v":{"v":0.41666666666666663,"d":"0.42 Din."}},"Aranžirano: krem sir, tvrdi sir sa orasima"]
[null,"Krekeri",{"v":25,"d":"25.00 Din."},5,10,{"$f":"(FoodTable[[#This Row],[PORCIJA ZA DECU]]*ChildrenTotal)+(FoodTable[[#This Row],[PORCIJA ZA ODRASLE]]*AdultTotal)","v":360},{"$f":"IFERROR(FoodTable[[#This Row],[UKUPAN TROŠAK]]/FoodTable[[#This Row],[UKUPNO PORCIJA]],\"\")","v":{"v":0.06944444444444445,"d":"0.07 Din."}},{"$f":"IFERROR(FoodTable[[#This Row],[TROŠAK PO PORCIJI]]*FoodTable[[#This Row],[PORCIJA ZA DECU]],\"\")","v":{"v":0.3472222222222222,"d":"0.35 Din."}},{"$f":"IFERROR(FoodTable[[#This Row],[TROŠAK PO PORCIJI]]*FoodTable[[#This Row],[PORCIJA ZA ODRASLE]],\"\")","v":{"v":0.6944444444444444,"d":"0.69 Din."}},"Aranžirano"]
[null,"Ukupno",{"$f":"SUBTOTAL(109,FoodTable[UKUPAN TROŠAK])","v":{"v":475,"d":"475.00 Din."}},{"$f":"SUBTOTAL(109,FoodTable[PORCIJA ZA DECU])","v":34.5},{"$f":"SUBTOTAL(109,FoodTable[PORCIJA ZA ODRASLE])","v":65.5},{"$f":"SUBTOTAL(109,FoodTable[UKUPNO PORCIJA])","v":2393},{"$f":"SUBTOTAL(109,FoodTable[TROŠAK PO PORCIJI])","v":{"v":6.915706603622084,"d":"6.92 Din."}},{"$f":"SUBTOTAL(109,FoodTable[TROŠAK PO DETETU])","v":{"v":7.252884190656953,"d":"7.25 Din."}},{"$f":"SUBTOTAL(109,FoodTable[TROŠAK PO ODRASLOM])","v":{"v":12.690089084110037,"d":"12.69 Din."}}]

{"sheet":"Druge osnovne potrepštine","index":3,"n_rows":30,"n_cols":5,"rows_kept":30,"merged":[[14,1,14,4],[22,1,22,4]]}
[]
[]
[null,"Druge osnovne potrepštine"]
[]
[]
[null,"Oprema i zalihe","Troškovi","Kupljeno","Beleške"]
[null,"Iznajmljivanje sobe/sale",{"v":250,"d":"250.00 Din."},"Da"]
[null,"Lanene prekrivke",{"v":30,"d":"30.00 Din."},"Da","Kirija"]
[null,"Stolovi i stolice",{"v":0,"d":"0.00 Din."},null,"Uključeno u najam sale"]
[null,"Salvete za pića",{"v":25,"d":"25.00 Din."}]
[null,"Salvete za večeru",{"v":20,"d":"20.00 Din."},null,"Kirija"]
[null,"Servis za ručavanje",{"v":50,"d":"50.00 Din."},null,"Kirija"]
[null,"Staklarija",{"v":25,"d":"25.00 Din."},null,"Kirija"]
[null,"Ukupno",{"$f":"SUBTOTAL(109,Table1Budget[Troškovi])","v":{"v":400,"d":"400.00 Din."}}]
[]
[]
[null,"Dekoracija","Troškovi","Kupljeno","Beleške"]
[null,"Baloni",{"v":25,"d":"25.00 Din."}]
[null,"Boca helijuma",{"v":50,"d":"50.00 Din."},null,"Kirija"]
[null,"Dekoracija za stolove",{"v":100,"d":"100.00 Din."},"Da","Ukupno 10"]
[null,"Staklene vaze",{"v":0,"d":"0.00 Din."},null,"Pozajmica od Sandre"]
[null,"Ukupno",{"$f":"SUBTOTAL(109,Table2Budget[Troškovi])","v":{"v":175,"d":"175.00 Din."}}]
[]
[]
[null,"Ostalo","Troškovi","Kupljeno","Beleške"]
[null,"Pozivnice",{"v":50,"d":"50.00 Din."},"Da"]
[null,"Poštarina",{"v":60,"d":"60.00 Din."},"Da"]
[null,"Fotograf",{"v":125,"d":"125.00 Din."},null,"2 časa (14:00 – 16:00)"]
[null,"Poklončići sa žurke",{"v":50,"d":"50.00 Din."}]
[null,"Ukupno",{"$f":"SUBTOTAL(109,Table3Budget[Troškovi])","v":{"v":285,"d":"285.00 Din."}}]

{"sheet":"Koord. mreža rasporeda sedenja","index":4,"n_rows":43,"n_cols":34,"rows_kept":43,"merged":[[35,0,35,17],[35,19,35,33]]}
["Raspored sedenja"]
{"$rows_empty":33}
[{"$nulls":33},"*1 kvadrat = približno 1 kvadratna stopa"]
["Beleške",{"$nulls":18},{"$f":"\" Total confirmed guests: \"&ConfirmedGuests","v":" Total confirmed guests: 46"}]
[{"$nulls":19},"Možete da koristite bilo koje od sledećih postavki za stolove:"]
[{"$nulls":20},{"$f":"ROUNDUP(ConfirmedGuests/6,0)&\" okrugli stolovi 137.2 cm (6 mesta)\"","v":"8 okrugli stolovi 137.2 cm (6 mesta)"}]
[{"$nulls":20},{"$f":"ROUNDUP(ConfirmedGuests/8,0) &\" okrugli stolovi 152.4 cm (8 mesta)\"","v":"6 okrugli stolovi 152.4 cm (8 mesta)"}]
[{"$nulls":20},{"$f":"ROUNDUP(ConfirmedGuests/10,0)&\" okrugli stolovi 182.9 cm (10 mesta)\"","v":"5 okrugli stolovi 182.9 cm (10 mesta)"}]
[{"$nulls":20},{"$f":"ROUNDUP(ConfirmedGuests/6,0)& \"pravougaoni stolovi 76.2 cm x 182.9 cm (6 mesta)\"","v":"8pravougaoni stolovi 76.2 cm x 182.9 cm (6 mesta)"}]
[{"$nulls":20},{"$f":"ROUNDUP(ConfirmedGuests/8,0)&\" pravougaoni stolovi 76.2 cm x 243.8 cm (8 mesta)\"","v":"6 pravougaoni stolovi 76.2 cm x 243.8 cm (8 mesta)"}]
[{"$nulls":19},"(Poželjna razdaljina među stolovima: 42 inča)"]